[Event "IX Iberoamericano Championship 2023"]
[Site "Panama City"]
[Date "2023.11.27"]
[Round "3.15"]
[White "Camargo Silva, Samir"]
[Black "Gutierrez Espinosa, Karen"]
[Result "0-1"]
[ECO "B18"]
[WhiteElo "1616"]
[BlackElo "2059"]
[Annotator "RC"]
[PlyCount "114"]
[EventDate "2023.11.27"]
[EventType "swiss"]
[EventCountry "PAN"]
[SourceTitle "playchess.com"]
[Source "ChessBase"]
[SourceQuality "1"]
[TimeControl "5400+30"]

1. e4 {[%emt 0:00:15]} c6 {[%emt 0:00:16]} 2. d4 {[%emt 0:00:17]} d5 {[%emt 0:00:14]} 3. Nc3 {[%emt 0:00:48]} dxe4 {[%emt 0:00:10]} 4. Nxe4 {[%emt 0:00:16]} Bf5 {[%emt 0:00:24]} 5. Ng3 {[%emt 0:00:40]} Bg6 {[%emt 0:00:05]} 6. Nf3 {[%emt 0:02:13]} Nd7 {[%emt 0:00:26]} 7. Be2 {[%emt 0:01:43]} e6 {[%emt 0:00:37]} 8. O-O {[%emt 0:01:19]} Ngf6 {[%emt 0:01:25]} 9. c3 {[%emt 0:02:49]} Bd6 {[%emt 0:02:56]} 10. Bg5 {[%emt 0:02:05]} O-O {[%emt 0:00:50]} 11. Nh4 {[%emt 0:09:10]} Qc7 {[%emt 0:01:21]} 12. Qd2 {[%emt 0:09:18]} Nd5 {[%emt 0:12:39]} 13. c4 {[%emt 0:07:24]} Bf4 {[%emt 0:01:06]} 14. Bxf4 {[%emt 0:00:03]} Nxf4 {[%emt 0:00:14]} 15. Nxg6 {[%emt 0:01:50]} Nxe2+ {[%emt 0:00:38]} 16. Qxe2 {[%emt 0:00:38]} hxg6 {[%emt 0:00:10]} 17. Rfd1 {[%emt 0:04:46]} Nf6 {[%emt 0:00:40]} 18. Ne4 {[%emt 0:04:39]} Rad8 {[%emt 0:00:43]} 19. Rac1 {[%emt 0:10:58]} Qf4 {[%emt 0:03:21]} 20. Nxf6+ {[%emt 0:02:20]} gxf6 {[%emt 0:00:29]} 21. Qe3 {[%emt 0:00:47]} Qh4 {[%emt 0:01:23]} 22. h3 {[%emt 0:01:22]} Rd7 {[%emt 0:02:11]} 23. Rd3 {[%emt 0:02:53]} Rfd8 {[%emt 0:01:26]} 24. Rcd1 {[%emt 0:00:22]} Kg7 {[%emt 0:03:06]} 25. Kf1 {[%emt 0:01:09]} c5 {[%emt 0:01:46]} 26. f4 {[%emt 0:13:00]} cxd4 {[%emt 0:05:02]} 27. Rxd4 {[%emt 0:00:09]} Rxd4 {[%emt 0:00:09]} 28. Rxd4 {[%emt 0:00:07]} Rxd4 {[%emt 0:00:05]} 29. Qxd4 {[%emt 0:00:08]} e5 {[%emt 0:00:36]} 30. Qf2 {[%emt 0:01:34]} Qh5 {[%emt 0:00:13]} 31. fxe5 {[%emt 0:03:55]} fxe5 {[%emt 0:00:53]} 32. Kg1 {[%emt 0:03:56]} Qd1+ {[%emt 0:00:32]} 33. Kh2 {[%emt 0:00:21]} Qd6 {[%emt 0:04:36]} 34. Qe3 {[%emt 0:03:00]} b6 {[%emt 0:05:40]} 35. g4 {[%emt 0:02:09]} e4+ {[%emt 0:03:10]} 36. Kg2 {[%emt 0:00:33]} Qe5 {[%emt 0:00:15]} 37. b3 {[%emt 0:01:15]} g5 {[%emt 0:02:38]} 38. Kf2 {[%emt 0:01:06]} f6 {[%emt 0:01:08]} 39. Ke2 {[%emt 0:05:38]} Qh2+ {[%emt 0:01:22]} 40. Ke1 {[%emt 0:00:24]} Qg2 {[%emt 0:05:11]} 41. Qe2 {[%emt 0:02:00]} Qg3+ {[%emt 0:01:53]} 42. Kd1 {[%emt 0:00:32]} e3 {[%emt 0:01:56]} 43. Qd3 {[%emt 0:00:47]} Qf3+ {[%emt 0:03:41]} 44. Kc1 {[%emt 0:00:37]} Qh1+ {[%emt 0:02:43]} 45. Kb2 {[%emt 0:00:41]} Qh2+ {[%emt 0:00:22]} 46. Kc1 {[%emt 0:00:53]} Qh1+ {[%emt 0:05:32]} 47. Kc2 {[%emt 0:00:31]} Qxh3 {[%emt 0:02:27]} 48. Qd7+ {[%emt 0:00:13]} Kh6 {[%emt 0:00:22]} 49. Qf7 {[%emt 0:00:41]} Qxg4 {[%emt 0:03:29]} 50. Qxf6+ {[%emt 0:00:33]} Kh5 {[%emt 0:00:22]} 51. Qh8+ {[%emt 0:00:11]} Kg6 {[%emt 0:00:06]} 52. Qg8+ {[%emt 0:00:14]} Kf5 {[%emt 0:00:07]} 53. Qf7+ {[%emt 0:01:09]} Ke4 {[%emt 0:00:22]} 54. Qd5+ {[%emt 0:00:12]} Kf4 {[%emt 0:00:06]} 55. Qd6+ {[%emt 0:00:51]} Kf3 {[%emt 0:00:45]} 56. Qf6+ {[%emt 0:00:32]} Qf4 {[%emt 0:00:27]} 57. Qxf4+ {[%emt 0:00:29]} gxf4 {[%emt 0:00:07]} 0-1

[Event "IX Iberoamericano Championship 2023"]
[Site "Panama City"]
[Date "2023.11.27"]
[Round "3.16"]
[White "Yau De Leon, Oscar Adin"]
[Black "Pilarte, Rene"]
[Result "0-1"]
[ECO "C77"]
[WhiteElo "1560"]
[BlackElo "2010"]
[Annotator "RC"]
[PlyCount "72"]
[EventDate "2023.11.27"]
[EventType "swiss"]
[EventCountry "PAN"]
[SourceTitle "playchess.com"]
[Source "ChessBase"]
[SourceQuality "1"]
[TimeControl "5400+30"]

1. e4 {[%emt 0:00:17]} e5 {[%emt 0:03:11]} 2. Nf3 {[%emt 0:01:05]} Nc6 {[%emt 0:00:01]} 3. Bb5 {[%emt 0:00:32]} a6 {[%emt 0:00:05]} 4. Ba4 {[%emt 0:00:09]} Nf6 {[%emt 0:00:05]} 5. d3 {[%emt 0:00:38]} b5 {[%emt 0:00:19]} 6. Bb3 {[%emt 0:00:10]} Bc5 {[%emt 0:00:12]} 7. Nc3 {[%emt 0:00:39]} h6 {[%emt 0:03:02]} 8. Nd5 {[%emt 0:01:37]} d6 {[%emt 0:01:54]} 9. c3 {[%emt 0:01:49]} Nxd5 {[%emt 0:09:22]} 10. Bxd5 {[%emt 0:00:28]} Bd7 {[%emt 0:00:51]} 11. O-O {[%emt 0:01:48]} O-O {[%emt 0:03:56]} 12. d4 {[%emt 0:04:13]} Bb6 {[%emt 0:10:28]} 13. Be3 {[%emt 0:04:49]} Rb8 {[%emt 0:06:04]} 14. h3 {[%emt 0:29:17]} Qf6 {[%emt 0:02:47]} 15. a3 {[%emt 0:13:55]} Rbd8 {[%emt 0:01:40]} 16. b4 {[%emt 0:04:22]} Ne7 {[%emt 0:01:34]} 17. Bb3 {[%emt 0:03:51]} Qg6 {[%emt 0:02:53]} 18. Kh2 {[%emt 0:15:27]} Qxe4 {[%emt 0:14:50]} 19. Bc2 {[%emt 0:00:08]} Qc6 {[%emt 0:00:09]} 20. Rc1 {[%emt 0:00:31]} e4 {[%emt 0:04:14]} 21. Ng1 {[%emt 0:00:16]} d5 {[%emt 0:00:40]} 22. Qh5 {[%emt 0:02:51]} f5 {[%emt 0:02:40]} 23. Ne2 {[%emt 0:00:35]} Qf6 {[%emt 0:07:00]} 24. Ng1 {[%emt 0:03:25]} f4 {[%emt 0:03:29]} 25. Bd2 {[%emt 0:00:34]} c6 {[%emt 0:06:45]} 26. Qd1 {[%emt 0:04:12]} f3 {[%emt 0:04:09]} 27. g3 {[%emt 0:00:58]} Bc7 {[%emt 0:00:11]} 28. Be3 {[%emt 0:00:58]} h5 {[%emt 0:05:31]} 29. Kh1 {[%emt 0:01:41]} h4 {[%emt 0:00:26]} 30. Qd2 {[%emt 0:03:22]} hxg3 {[%emt 0:02:21]} 31. fxg3 {[%emt 0:00:02]} Nf5 {[%emt 0:01:20]} 32. Bf4 {[%emt 0:01:08]} Nxg3+ {[%emt 0:00:13]} 33. Bxg3 {[%emt 0:00:12]} Bxg3 {[%emt 0:00:01]} 34. Ne2 {[%emt 0:00:42]} Bc7 {[%emt 0:00:32]} 35. Rf2 {[%emt 0:00:27]} Qh4 {[%emt 0:00:29]} 36. Ng1 {[%emt 0:00:23]} Bf4 {[%emt 0:00:14]} 0-1

[Event "IX Iberoamericano Championship 2023"]
[Site "Panama City"]
[Date "2023.11.27"]
[Round "3.17"]
[White "Guevara Sanchez, Erick Marvin"]
[Black "Castillo Miranda, Mario Anel"]
[Result "1-0"]
[ECO "B84"]
[WhiteElo "2059"]
[BlackElo "1475"]
[Annotator "RC"]
[PlyCount "51"]
[EventDate "2023.11.27"]
[EventType "swiss"]
[EventCountry "PAN"]
[SourceTitle "playchess.com"]
[Source "ChessBase"]
[SourceQuality "1"]
[TimeControl "5400+30"]

1. e4 {[%emt 0:05:04]} c5 {[%emt 0:00:28]} 2. Nf3 {[%emt 0:00:09]} d6 {[%emt 0:00:08]} 3. d4 {[%emt 0:00:06]} cxd4 {[%emt 0:00:09]} 4. Nxd4 {[%emt 0:00:06]} Nf6 {[%emt 0:00:12]} 5. Nc3 {[%emt 0:00:09]} a6 {[%emt 0:00:05]} 6. Be2 {[%emt 0:02:35]} e6 {[%emt 0:03:07]} 7. Be3 {[%emt 0:03:10]} Nbd7 {[%emt 0:02:01]} 8. O-O {[%emt 0:02:07]} Be7 {[%emt 0:00:51]} 9. f4 {[%emt 0:01:28]} b6 {[%emt 0:04:29]} 10. Nc6 {[%emt 0:01:54]} Qc7 {[%emt 0:00:07]} 11. Nxe7 {[%emt 0:00:09]} Kxe7 {[%emt 0:00:05]} 12. g4 {[%emt 0:04:33]} Bb7 {[%emt 0:05:03]} 13. Bf3 {[%emt 0:00:33]} Nc5 {[%emt 0:07:27]} 14. Qd4 {[%emt 0:04:54]} e5 {[%emt 0:06:27]} 15. fxe5 {[%emt 0:00:36]} dxe5 {[%emt 0:00:37]} 16. Qc4 {[%emt 0:00:18]} h6 {[%emt 0:23:18]} 17. b4 {[%emt 0:05:54]} Ne6 {[%emt 0:00:14]} 18. Qxc7+ {[%emt 0:00:18]} Nxc7 {[%emt 0:00:07]} 19. Bxb6 {[%emt 0:00:10]} Ne6 {[%emt 0:01:21]} 20. Nd5+ {[%emt 0:02:08]} Bxd5 {[%emt 0:05:04]} 21. exd5 {[%emt 0:01:35]} Nf4 {[%emt 0:00:15]} 22. c4 {[%emt 0:04:48]} Rac8 {[%emt 0:01:22]} 23. Bc5+ {[%emt 0:01:55]} Kd7 {[%emt 0:00:34]} 24. Bd1 {[%emt 0:05:19]} Rhd8 {[%emt 0:02:01]} 25. Ba4+ {[%emt 0:04:29]} Kc7 {[%emt 0:00:09]} 26. Be7 {[%emt 0:00:22]} 1-0

[Event "IX Iberoamericano Championship 2023"]
[Site "Panama City"]
[Date "2023.11.27"]
[Round "3.18"]
[White "Mejias Nunez, Rafael E."]
[Black "Leal Licon, Daniel Isai"]
[Result "1-0"]
[ECO "B13"]
[WhiteElo "2029"]
[BlackElo "1383"]
[Annotator "RC"]
[PlyCount "71"]
[EventDate "2023.11.27"]
[EventType "swiss"]
[EventCountry "PAN"]
[SourceTitle "playchess.com"]
[Source "ChessBase"]
[SourceQuality "1"]
[TimeControl "5400+30"]

1. e4 {[%emt 0:00:08]} c6 {[%emt 0:00:08]} 2. d4 {[%emt 0:00:50]} d5 {[%emt 0:00:08]} 3. exd5 {[%emt 0:00:11]} cxd5 {[%emt 0:00:17]} 4. Bd3 {[%emt 0:00:08]} Nf6 {[%emt 0:00:56]} 5. h3 {[%emt 0:02:53]} Nc6 {[%emt 0:01:42]} 6. c3 {[%emt 0:00:34]} h6 {[%emt 0:04:06]} 7. Nf3 {[%emt 0:01:36]} Qc7 {[%emt 0:02:48]} 8. Na3 {[%emt 0:01:39]} a6 {[%emt 0:05:43]} 9. Qe2 {[%emt 0:02:07]} Bd7 {[%emt 0:04:32]} 10. Ne5 {[%emt 0:02:01]} Nxe5 {[%emt 0:04:15]} 11. dxe5 {[%emt 0:00:14]} Ng8 {[%emt 0:00:17]} 12. Nc2 {[%emt 0:01:52]} e6 {[%emt 0:01:09]} 13. O-O {[%emt 0:00:55]} Bc5 {[%emt 0:01:53]} 14. Nd4 {[%emt 0:01:15]} Ne7 {[%emt 0:02:28]} 15. Kh1 {[%emt 0:02:37]} Ng6 {[%emt 0:07:18]} 16. Bxg6 {[%emt 0:02:35]} fxg6 {[%emt 0:00:31]} 17. Qg4 {[%emt 0:00:51]} Ke7 {[%emt 0:05:43]} 18. Nb3 {[%emt 0:04:32]} Bb5 {[%emt 0:05:57]} 19. Nxc5 {[%emt 0:03:39]} Qxc5 {[%emt 0:04:41]} 20. Be3 {[%emt 0:00:18]} Qc7 {[%emt 0:07:18]} 21. Qxg6 {[%emt 0:02:51]} Qxe5 {[%emt 0:04:16]} 22. Bd4 {[%emt 0:01:47]} Qg5 {[%emt 0:02:58]} 23. Bc5+ {[%emt 0:00:12]} Kd7 {[%emt 0:03:46]} 24. Qf7+ {[%emt 0:00:15]} Kc6 {[%emt 0:03:28]} 25. Qxe6+ {[%emt 0:09:30]} Kxc5 {[%emt 0:07:19]} 26. b4+ {[%emt 0:00:10]} Kc4 {[%emt 0:00:06]} 27. Qe2+ {[%emt 0:03:04]} Kxc3 {[%emt 0:00:09]} 28. Rfc1+ {[%emt 0:00:17]} Kxb4 {[%emt 0:05:52]} 29. Qb2+ {[%emt 0:00:15]} Ka5 {[%emt 0:00:18]} 30. Qc3+ {[%emt 0:00:26]} Kb6 {[%emt 0:01:00]} 31. Qc5+ {[%emt 0:00:07]} Ka5 {[%emt 0:00:13]} 32. a4 {[%emt 0:00:11]} Qxc1+ {[%emt 0:01:54]} 33. Qxc1 {[%emt 0:00:48]} Bc4 {[%emt 0:01:02]} 34. Qc3+ {[%emt 0:00:26]} Kb6 {[%emt 0:00:17]} 35. Rb1+ {[%emt 0:00:18]} Ka7 {[%emt 0:01:28]} 36. Qd4+ {[%emt 0:00:03]} 1-0

[Event "IX Iberoamericano Championship 2023"]
[Site "Panama City"]
[Date "2023.11.28"]
[Round "4.1"]
[White "Almeida Quintana, Omar"]
[Black "Henriquez Villagra, Cristobal"]
[Result "0-1"]
[ECO "A48"]
[WhiteElo "2509"]
[BlackElo "2630"]
[Annotator "TA"]
[PlyCount "72"]
[EventDate "2023.11.27"]
[EventType "swiss"]
[EventCountry "PAN"]
[SourceTitle "playchess.com"]
[Source "ChessBase"]
[SourceQuality "1"]
[TimeControl "5400+30"]

{[%evp 11,72,0,11,-8,-9,-21,-10,-36,-37,-43,-51,-81,-79,-80,-89,-141,-124,-156,-164,-152,-143,-152,-141,-160,-151,-150,-147,-148,-145,-151,-142,-175,-165,-159,-172,-156,-169,-180,-181,-169,-175,-210,-172,-160,-167,-214,-143,-182,-172,-172,-175,-175,-143,-251,-251,-366,-350,-328,-285,-521,-477,-791,-777]} 1. d4 {[%emt 0:00:03]} Nf6 {[%emt 0:01:27]} 2. Nf3 {[%emt 0:00:17]} g6 {[%emt 0:00:07]} 3. Bf4 {[%emt 0:00:06]} Bg7 {[%emt 0:00:56]} 4. e3 {[%emt 0:00:05]} d6 {[%emt 0:02:15]} 5. h3 {[%emt 0:00:34]} O-O {[%emt 0:00:14]} 6. c3 {[%emt 0:01:02]} Nc6 {[%emt 0:03:38]} 7. Nbd2 {[%emt 0:01:25] A48: 1 d4 Nf6 2 Nf3 g6: Torre, London and Colle Systems.} Nd7 {[%emt 0:00:25]} 8. Nc4 {[%emt 0:05:36]} e5 {[%emt 0:17:23]} 9. dxe5 {[%emt 0:03:42] The position is equal.} dxe5 {[%emt 0:01:05]} 10. Bh2 {[%emt 0:00:57]} Qe7 {[%emt 0:00:34] [#]} 11. Nfd2 $146 {[%emt 0:08:54]} ({Predecessor:} 11. Be2 f5 12. O-O Kh8 13. Qc2 b6 14. a4 a6 15. Rad1 Bb7 16. Rd2 e4 17. Nd4 {0-1 Thorsteinsson,E (2132)-Edvardsson,K (2261) Reykjavik op 23rd 2008 (5)}) 11... b5 {[%emt 0:04:00]} 12. Na3 {[%emt 0:00:30]} a6 {[%emt 0:00:13]} 13. e4 {[%emt 0:11:49]} (13. Qc2 $142) 13... Nc5 $17 {[%emt 0:02:35]} 14. b4 {[%emt 0:00:32]} Na4 {[%emt 0:00:24]} 15. Qc2 {[%emt 0:02:18]} Rd8 {[%emt 0:01:05]} 16. Rd1 {[%emt 0:04:34]} Be6 {[%emt 0:03:17]} 17. Nab1 {[%emt 0:02:43]} Na7 {[%emt 0:05:26] Black has more active pieces.} 18. Be2 {[%emt 0:02:08]} c5 {[%emt 0:00:10]} 19. bxc5 {[%emt 0:00:05]} Qxc5 {[%emt 0:02:46]} 20. O-O {[%emt 0:00:05]} Rdc8 {[%emt 0:12:02][%cal Ra4c3]} 21. Bg4 {[%emt 0:11:52]} Nxc3 {[%emt 0:09:47]} 22. Nxc3 {[%emt 0:00:06]} Bxg4 {[%emt 0:02:47]} (22... Qxc3 23. Qxc3 Rxc3 24. Bxe6 fxe6 25. Nf3 $15) 23. hxg4 {[%emt 0:00:25] [#] And now Nb3 would win.} Qxc3 {[%emt 0:00:06]} 24. Qxc3 {[%emt 0:01:02]} Rxc3 {[%emt 0:00:05]} 25. Nf3 {[%emt 0:00:03]} Nc6 {[%emt 0:00:17]} 26. Rd7 {[%emt 0:01:33]} Rc4 {[%emt 0:02:40]} 27. Rfd1 {[%emt 0:05:20]} h6 {[%emt 0:00:30]} 28. Rc7 {[%emt 0:04:43]} (28. g5 {is a better defense.}) 28... Nd4 {[%emt 0:01:25]} 29. Rxc4 {[%emt 0:03:00]} Nxf3+ {[%emt 0:00:06]} 30. gxf3 {[%emt 0:00:04]} bxc4 {[%emt 0:00:03][%mdl 4096] Endgame KRB-KRB} 31. Kf1 {[%emt 0:00:04]} g5 {[%emt 0:02:18]} 32. Ke2 {[%emt 0:02:55]} (32. Ke1 $17) 32... Rb8 $19 {[%emt 0:01:45]} 33. Rd5 {[%emt 0:01:02]} (33. Rc1 {was necessary.}) 33... Rb2+ {[%emt 0:00:39]} 34. Ke3 {[%emt 0:03:05] [#]} f6 {[%emt 0:00:06]} (34... Rxa2 35. Bxe5 Bxe5 36. Rxe5 $17) 35. Rc5 $2 {[%emt 0:00:04]} (35. Rd2 {was the only defense.} c3 36. Rd8+ Bf8 37. Rc8) 35... Rc2 {[%emt 0:00:46] Strongly threatening ...Bf8.} ({Inferior is} 35... Rxa2 36. Rxc4 Bf8 37. Rc8 $19) 36. Bg3 {[%emt 0:00:48]} (36. Rd5 $142 Rxa2 37. Rd2 Ra3+ 38. Ke2) 36... Bf8 {[%emt 0:00:27] Weighted Error Value: White=0.41/Black=0.06 (flawless)} ({And not} 36... Rxa2 37. Rxc4 Bf8 38. Kd3 $17) 0-1

[Event "IX Iberoamericano Championship 2023"]
[Site "Panama City"]
[Date "2023.11.28"]
[Round "4.2"]
[White "Espinosa Veloz, Ermes"]
[Black "Mareco, Sandro"]
[Result "1/2-1/2"]
[ECO "B50"]
[WhiteElo "2478"]
[BlackElo "2606"]
[Annotator "TA"]
[PlyCount "100"]
[EventDate "2023.11.27"]
[EventType "swiss"]
[EventCountry "PAN"]
[SourceTitle "playchess.com"]
[Source "ChessBase"]
[SourceQuality "1"]
[TimeControl "5400+30"]

{[%evp 9,100,4,10,12,0,6,18,0,0,0,0,0,0,0,0,0,0,6,3,3,0,0,0,0,0,0,0,-10,-20,-18,-22,-31,-25,-15,0,0,0,0,0,0,0,0,0,0,0,0,0,0,0,0,0,0,0,0,0,0,0,0,0,0,0,0,0,0,0,0,0,0,0,0,0,0,0,0,0,-47,-47,-47,0,-47,0,-47,0,0,0,0,0,0,0,0,0,0,0]} 1. e4 {[%emt 0:04:06]} c5 {[%emt 0:00:04]} 2. Nf3 {[%emt 0:00:31]} d6 {[%emt 0:00:03]} 3. c3 {[%emt 0:01:05]} Nf6 {[%emt 0:00:06]} 4. h3 {[%emt 0:00:06]} Nc6 {[%emt 0:00:23]} 5. Bd3 {[%emt 0:00:20]} g5 {[%emt 0:01:24]} 6. Bc2 {[%emt 0:00:34] B50: Sicilian: 2...d6, Miscellaneous.} g4 {[%emt 0:00:05]} 7. hxg4 {[%emt 0:00:07]} Bxg4 {[%emt 0:00:02]} 8. d4 {[%emt 0:00:51]} d5 {[%emt 0:00:04] [#]} 9. exd5 $146 {[%emt 0:20:07]} ({Predecessor:} 9. e5 Ne4 10. Be3 e6 11. a3 Qb6 12. Ra2 O-O-O 13. Nbd2 cxd4 14. cxd4 Nxd2 15. Qxd2 {0-1 Szpar,M (2403)-Nguyen,T (2577) POL-chT Ekstraliga 2021 (5.1)}) 9... Nxd5 {[%emt 0:01:19]} 10. dxc5 {[%emt 0:01:16]} (10. Bxh7 $2 {perishes.} cxd4 11. cxd4 Nf6 $19) 10... e6 {[%emt 0:00:13]} 11. Be4 {[%emt 0:15:02]} (11. Bxh7 Qf6 12. Qb3 Bxf3 13. Qxb7 Qe5+ 14. Be3 Nd8 15. Qb5+ (15. Qxa8 $2 {loses.} Bxg2 $19) 15... Ke7 $19) 11... Bxc5 {[%emt 0:00:26]} 12. Bxd5 {[%emt 0:00:11]} Qxd5 {[%emt 0:02:29]} 13. Qxd5 {[%emt 0:00:59]} exd5 {[%emt 0:00:04]} 14. Nbd2 {[%emt 0:15:46][%cal Bb1d2,Bd2b3,Bb3d4,Bd4f3][%mdl 32]} O-O-O {[%emt 0:16:35][%cal Ba8d8,Bd8e8,Be8e3][%mdl 32]} 15. Nb3 {[%emt 0:00:05]} Rde8+ {[%emt 0:02:41]} 16. Kf1 {[%emt 0:00:08]} Bb6 {[%emt 0:00:06]} 17. Nbd4 {[%emt 0:11:11]} h5 {[%emt 0:22:55]} 18. Be3 {[%emt 0:02:48]} Bxf3 {[%emt 0:02:50]} 19. Nxf3 {[%emt 0:03:31] Hoping for Bxb6.} Bxe3 {[%emt 0:00:21]} 20. fxe3 {[%emt 0:00:05]} Rxe3 {[%emt 0:00:05]} 21. Rd1 {[%emt 0:10:00]} Ne5 {[%emt 0:03:12]} 22. Rxd5 {[%emt 0:02:20]} Nxf3 {[%emt 0:00:06]} 23. gxf3 {[%emt 0:00:18]} Rxf3+ $11 {[%emt 0:04:11][%mdl 4096] Endgame KRR-KRR} 24. Ke2 {[%emt 0:00:11]} Rg3 {[%emt 0:00:09]} 25. Rhxh5 {[%emt 0:00:27]} Rg2+ {[%emt 0:02:49]} 26. Kd3 {[%emt 0:00:07]} Rxh5 {[%emt 0:01:18]} 27. Rxh5 {[%emt 0:00:05]} Rxb2 {[%emt 0:00:06][%cal Oc8d7] KR-KR} 28. Rf5 {[%emt 0:00:05]} Rxa2 {[%emt 0:00:06]} 29. Rxf7 {[%emt 0:00:05]} Ra6 {[%emt 0:00:20]} 30. c4 {[%emt 0:06:04]} Rd6+ {[%emt 0:00:41]} 31. Kc3 {[%emt 0:00:02]} Rd7 {[%emt 0:00:10]} 32. Rf6 {[%emt 0:00:04]} b6 {[%emt 0:00:26]} 33. Kb3 {[%emt 0:05:54]} Kb7 {[%emt 0:01:16]} 34. Rh6 {[%emt 0:01:01]} a6 {[%emt 0:00:29]} 35. Rg6 {[%emt 0:00:12]} Rd3+ {[%emt 0:01:39]} 36. Kb2 {[%emt 0:01:19]} a5 {[%emt 0:00:07]} 37. Rh6 {[%emt 0:00:05]} Kc7 {[%emt 0:01:44]} 38. Rg6 {[%emt 0:01:15]} Rd6 {[%emt 0:00:09]} 39. Rg5 {[%emt 0:00:04]} Kc6 {[%emt 0:00:04]} 40. Kb3 {[%emt 0:00:07]} Rf6 {[%emt 0:00:06]} 41. Rh5 {[%emt 0:00:09]} Rf3+ {[%emt 0:00:06]} 42. Kb2 {[%emt 0:00:10]} (42. Kc2 $11) 42... Re3 {[%emt 0:01:11]} 43. Rg5 {[%emt 0:00:06]} Kd6 {[%emt 0:00:05]} (43... Re4 $15 44. Kb3 Re6) 44. Rb5 {[%emt 0:00:26]} (44. c5+ $1 $11 {should be considered.} bxc5 45. Rg6+ Re6 46. Rg8) 44... Kc6 {[%emt 0:00:09]} 45. Rg5 $1 {[%emt 0:00:05]} a4 {[%emt 0:00:31]} (45... Rh3 $15) 46. Rh5 {[%emt 0:00:36] The position is equal.} Rb3+ {[%emt 0:00:06]} 47. Kc2 {[%emt 0:00:07]} Rg3 {[%emt 0:00:41]} 48. Kb2 {[%emt 0:00:11]} a3+ {[%emt 0:02:24]} 49. Ka2 {[%emt 0:00:27]} Rc3 {[%emt 0:00:05]} 50. Rg5 {[%emt 0:00:43]} Rxc4 {[%emt 0:02:09] Weighted Error Value: White=0.03 (flawless) /Black=0.04 (flawless)} 1/2-1/2